bitfinex/quotes_SOLUSD_20241110
["timestamp","ask_amount","ask_price","bid_price","bid_amount"]
[1731263722698,0.12549,213.78,213.7,6.5675]
[1731263722898,23.902374,213.76,213.73,33.74665127]
[1731263723193,23.902374,213.76,213.72,33.74665127]
[1731263723608,23.776884,213.76,213.75,33.74665127]
[1731263723906,23.776884,213.76,213.75,53.74665127]
[1731263724116,32.81583924,213.83,213.76,20.0]
[1731263724117,0.5,213.82,213.76,20.0]
[1731263724292,0.5,213.87,213.76,20.0]
[1731263724487,0.12549,213.85,213.76,20.0]
[1731263724699,0.12549,213.85,213.74,20.0]
[1731263724992,5.32532543,213.86,213.74,20.0]
[1731263724993,0.5,213.84,213.74,20.0]
[1731263725189,0.5,213.84,213.78,20.0]
[1731263725687,0.62549,213.84,213.81,33.74665127]
[1731263725901,0.62549,213.84,213.77,21.5709]
[1731263725902,0.12549,213.83,213.78,20.0]
[1731263726206,0.12549,213.81,213.72,6.2651]
[1731263726412,32.81532543,213.86,213.72,6.2651]
[1731263726413,0.12549,213.79,213.72,6.2651]
[1731263726703,0.5,213.8,213.72,6.2651]
[1731263727499,23.902374,213.79,213.77,33.74665127]
[1731263727709,23.902374,213.79,213.78,20.0]
[1731263728094,23.902374,213.79,213.72,6.2651]
[1731263728298,23.902374,213.77,213.74,20.0]
[1731263728896,23.902374,213.77,213.72,40.01175127]
[1731263729102,23.902374,213.77,213.71,49.03855127]
[1731263729321,0.12549,213.75,213.71,49.03855127]
[1731263729499,0.12549,213.75,213.69,33.74665127]
[1731263729693,0.12549,213.75,213.67,6.2651]
[1731263729694,23.902374,213.74,213.67,6.2651]
[1731263729892,0.12549,213.7,213.66,33.74665127]
[1731263730105,0.12549,213.7,213.67,33.74665127]
[1731263730717,0.12549,213.7,213.66,33.74665127]
[1731263730919,0.12549,213.7,213.68,33.74665127]
[1731263731122,0.12549,213.7,213.67,33.74665127]
[1731263731414,0.12549,213.7,213.66,33.74665127]
[1731263731590,0.12549,213.7,213.64,33.77554889]
[1731263732017,0.12549,213.7,213.63,33.77554889]
[1731263732307,23.902374,213.68,213.62,40.04064889]
[1731263732498,57.67792289,213.68,213.61,33.77554889]
[1731263732898,0.12549,213.66,213.6,33.77554889]
[1731263733113,23.902374,213.66,213.6,33.77554889]
[1731263733505,23.902374,213.66,213.61,33.77554889]
[1731263733706,0.12549,213.66,213.62,33.77554889]
[1731263734102,0.12549,213.67,213.62,33.77554889]
[1731263734609,0.12549,213.67,213.61,33.77554889]
[1731263734816,23.902374,213.65,213.6,20.0]
[1731263735207,57.67792289,213.63,213.56,40.08754889]
[1731263735404,57.67792289,213.63,213.56,6.312]
[1731263735604,57.67792289,213.63,213.56,40.08754889]
[1731263735800,0.12549,213.6,213.56,40.08754889]
[1731263736006,23.902374,213.61,213.56,6.312]
[1731263736227,0.12549,213.59,213.53,33.77554889]
[1731263736405,23.776884,213.61,213.59,20.0]
[1731263736611,4.82860808,213.66,213.59,53.77554889]
[1731263736918,0.12549,213.65,213.59,53.77554889]
[1731263737125,0.12549,213.61,213.57,20.0]
[1731263737719,4.82860808,213.66,213.57,20.0]
[1731263737902,0.12549,213.65,213.57,20.0]
[1731263738101,4.82860808,213.66,213.62,33.80173703]
[1731263738516,0.12549,213.65,213.62,33.80173703]
[1731263739103,4.82860808,213.66,213.64,33.80173703]
[1731263739303,4.82860808,213.66,213.65,53.80173703]
[1731263739699,4.95409808,213.66,213.65,20.0]
[1731263740011,0.12549,213.65,213.63,20.0]
[1731263740212,0.12549,213.65,213.63,33.80173703]
[1731263740504,23.902374,213.65,213.62,33.80173703]
[1731263740713,23.902374,213.65,213.62,20.0]
[1731263741117,23.902374,213.65,213.64,33.80173703]
[1731263741413,23.776884,213.65,213.64,53.80173703]
[1731263741712,23.776884,213.65,213.61,20.0]
[1731263742022,0.12549,213.64,213.61,20.0]
[1731263742319,0.12549,213.64,213.62,33.80173703]
[1731263742629,23.776884,213.63,213.6,16.0508]
[1731263742825,33.80173703,213.75,213.62,67.60347406]
[1731263743123,4.82843061,213.71,213.67,33.80173703]
[1731263743507,33.80173703,213.74,213.68,20.0]
[1731263743703,4.82879683,213.7,213.68,20.0]
[1731263743906,61.79173703,213.76,213.69,53.80173703]
[1731263744226,4.82726231,213.73,213.69,20.0]
[1731263744514,0.12549,213.72,213.68,20.0]
[1731263744926,0.12549,213.72,213.68,53.80173703]
[1731263745221,4.82726231,213.73,213.64,6.312]
[1731263745222,4.82726231,213.73,213.72,20.0]
[1731263745408,4.82726231,213.73,213.71,20.0]
[1731263746018,34.30173703,213.83,213.65,20.0]
[1731263746327,38.47583703,213.95,213.67,16.6593]
[1731263746328,4.82789703,213.77,213.67,16.6593]
[1731263746502,0.6,213.91,213.68,20.0]
[1731263746704,4.82734821,213.81,213.79,33.80173703]
[1731263746914,0.12549,213.85,213.79,33.80173703]
[1731263747223,4.82723567,213.81,213.8,53.80173703]
[1731263747433,0.1,213.92,213.8,53.80173703]
[1731263747434,33.80173703,213.89,213.81,20.0]
[1731263747606,33.80173703,213.9,213.83,33.80173703]
[1731263748105,4.82733437,213.89,213.83,33.80173703]
[1731263748421,4.82733437,213.89,213.88,53.80173703]
[1731263748726,4.82733437,213.89,213.79,16.6593]
[1731263748727,0.12549,213.88,213.79,16.6593]
[1731263748910,0.12549,213.88,213.79,50.46103703]
[1731263749229,0.12549,213.88,213.66,0.1]
[1731263749230,0.12549,213.88,213.74,16.6593]
[1731263749521,0.22549,213.88,213.74,16.6593]
[1731263749704,0.1,213.87,213.74,16.6593]
[1731263749909,0.12549,213.86,213.74,16.6593]
[1731263750115,57.70411103,213.81,213.74,50.46103703]
[1731263750424,23.902374,213.81,213.74,50.46103703]
[1731263750807,57.70411103,213.81,213.74,50.46103703]
[1731263751010,23.902374,213.82,213.75,33.80173703]
[1731263751209,23.902374,213.82,213.76,40.06593703]
[1731263751417,23.902374,213.82,213.76,6.2642]
[1731263751623,57.70411103,213.82,213.77,20.0]
[1731263751931,23.902374,213.82,213.77,20.0]
[1731263752519,0.12549,213.8,213.74,16.6593]
[1731263752726,57.70411103,213.76,213.71,6.3664]
[1731263752950,23.902374,213.76,213.73,33.80173703]
[1731263753124,23.902374,213.76,213.72,33.80173703]
[1731263753624,23.776884,213.76,213.71,6.3664]
[1731263753822,23.776884,213.76,213.74,33.80173703]
[1731263754225,23.776884,213.76,213.75,53.80173703]
[1731263755221,0.12549,213.76,213.72,20.0]
[1731263755420,0.12549,213.76,213.73,33.80173703]
[1731263755627,0.12549,213.76,213.72,53.80173703]
[1731263755927,23.902374,213.76,213.72,33.80173703]
[1731263756123,0.12549,213.75,213.69,33.80173703]
[1731263756325,27.99,213.72,213.68,49.68303703]
[1731263756518,23.902374,213.71,213.68,15.8813]
[1731263757036,51.892374,213.71,213.66,33.80173703]
[1731263757408,51.892374,213.71,213.68,33.80173703]
[1731263757608,51.892374,213.71,213.7,33.80173703]
[1731263758313,51.766884,213.71,213.7,53.80173703]
[1731263758625,51.766884,213.71,213.7,20.0]
[1731263759016,51.766884,213.71,213.7,53.80173703]
[1731263759228,23.776884,213.71,213.7,53.80173703]
[1731263759709,33.80173703,213.85,213.71,20.0]
[1731263760038,0.5,213.87,213.82,33.80173703]
[1731263760219,0.5,213.86,213.82,33.80173703]
[1731263760425,28.49,213.86,213.81,20.0]
[1731263760825,0.12549,213.85,213.81,20.0]
[1731263761031,0.12549,213.85,213.81,33.80173703]
[1731263761032,4.82753509,213.85,213.81,33.80173703]
[1731263761328,51.766884,213.83,213.82,33.80173703]
[1731263761513,51.766884,213.83,213.81,33.80173703]
[1731263761716,0.12549,213.82,213.79,33.80173703]
[1731263761914,0.12549,213.82,213.78,33.80173703]
[1731263762124,0.12549,213.82,213.76,33.80173703]
[1731263762331,0.12549,213.82,213.75,20.0]
[1731263762332,0.12549,213.82,213.78,33.80173703]
[1731263762512,0.12549,213.82,213.77,33.80173703]
[1731263762721,0.12549,213.82,213.76,33.80173703]
[1731263763136,0.12549,213.82,213.78,33.80173703]
[1731263763314,0.12549,213.82,213.75,20.0]
[1731263763315,0.12549,213.82,213.77,33.80173703]
[1731263763710,0.12549,213.82,213.78,33.80173703]
[1731263764434,0.12549,213.82,213.79,33.80173703]
[1731263764634,0.12549,213.82,213.77,33.80173703]
[1731263764944,0.12549,213.82,213.73,20.0]
[1731263764945,27.99,213.82,213.8,33.80173703]
[1731263765120,27.99,213.82,213.79,20.0]
[1731263765121,27.99,213.82,213.81,53.80173703]
[1731263765531,32.81753509,213.85,213.82,20.0]
[1731263765731,4.82753509,213.85,213.84,53.80173703]
[1731263765931,33.80173703,213.91,213.84,53.80173703]
[1731263766139,0.1,213.92,213.84,53.80173703]
[1731263766140,0.12549,213.85,213.84,20.0]
[1731263766322,33.80173703,213.98,213.85,20.0]
[1731263766645,27.99,213.96,213.85,20.0]
[1731263766933,27.99,213.96,213.92,20.0]
[1731263767143,27.99,213.96,213.85,20.0]
[1731263767548,4.82582929,213.97,213.85,20.0]
[1731263767918,27.99,214.06,213.85,20.0]
[1731263768119,4.82432271,213.99,213.96,33.80173703]
[1731263768321,27.99,213.98,213.96,33.80173703]
[1731263768719,27.99,213.98,213.97,33.80173703]
[1731263769342,4.82413057,213.99,213.97,33.80173703]
[1731263769542,4.82413057,213.99,213.98,33.80173703]
[1731263769749,27.99,214.04,213.98,53.80173703]
[1731263769919,1.06243829,214.03,213.99,33.80173703]
[1731263770123,27.99,214.01,213.98,33.80173703]
[1731263770450,1.06243829,214.0,213.94,33.80173703]
[1731263770628,0.12549,213.99,213.97,20.0]
[1731263770822,0.12549,213.99,213.92,20.0]
[1731263771017,0.12549,213.99,213.96,33.80173703]
[1731263771237,0.12549,213.99,213.96,20.0]
[1731263771738,0.12549,213.99,213.91,6.6517]
[1731263771739,0.12549,213.97,213.92,33.80173703]
[1731263771936,0.12549,213.97,213.91,6.6517]
[1731263772140,0.12549,213.95,213.91,6.6517]
[1731263772328,23.902374,213.93,213.91,6.6517]
[1731263772641,23.776884,213.93,213.92,33.80173703]
[1731263772847,33.80173703,214.04,213.92,33.80173703]
[1731263773139,0.1,214.06,213.95,20.0]
[1731263773438,0.12549,214.0,213.95,20.0]
[1731263773642,0.12549,214.0,213.94,33.80173703]
[1731263773643,0.12549,213.98,213.94,20.0]
[1731263773832,0.12549,213.98,213.94,53.80173703]
[1731263774141,23.776884,213.95,213.94,20.0]
[1731263774355,23.776884,213.95,213.94,53.80173703]
[1731263775438,23.902374,213.95,213.94,20.0]
[1731263775639,0.12549,213.95,213.92,53.80173703]
[1731263775836,0.12549,213.94,213.91,40.45343703]
[1731263776139,27.99,214.0,213.93,33.80173703]
[1731263776453,23.776884,213.99,213.97,33.80173703]
[1731263776624,23.776884,213.99,213.97,33.67369659]
[1731263776825,23.902374,213.99,213.98,33.67369659]
[1731263777130,27.99,214.03,213.98,20.0]
[1731263777329,38.49623349,214.04,213.91,6.6517]
[1731263777330,27.99,213.99,213.91,6.6517]
[1731263777541,27.99,213.99,213.92,53.67369659]
[1731263777724,27.99,213.99,213.96,33.67369659]
[1731263778125,27.99,213.99,213.92,20.0]
[1731263778348,4.8225369,214.04,213.92,20.0]
[1731263778349,0.12549,213.97,213.92,20.0]
[1731263778921,0.12549,213.97,213.94,20.0]
[1731263779248,51.766884,214.0,213.94,53.67369659]
[1731263779625,0.12549,213.99,213.97,33.67369659]
[1731263779832,23.776884,214.0,213.98,20.0]
[1731263780140,4.8225369,214.04,213.99,33.67369659]
[1731263780341,32.8125369,214.04,213.98,53.67369659]
[1731263780928,0.12549,214.03,213.98,53.67369659]
[1731263781538,51.892374,214.03,213.98,53.67369659]
[1731263782143,85.56607059,214.03,213.96,33.67369659]
[1731263782332,85.56607059,214.03,213.97,20.0]
[1731263782527,0.12549,214.01,213.97,20.0]
[1731263782730,23.902374,214.01,213.97,20.0]
[1731263783042,23.776884,214.01,213.97,33.67647455]
[1731263783230,23.776884,214.01,213.98,53.67647455]
[1731263783426,23.776884,214.03,214.0,33.67647455]
[1731263783632,23.776884,214.03,214.01,20.0]
[1731263784237,23.776884,214.03,214.0,20.0]
[1731263784443,23.776884,214.01,213.96,33.67647455]
[1731263784644,23.776884,214.01,213.98,33.67647455]
[1731263784849,0.12549,214.02,213.99,20.0]
[1731263785234,0.12549,214.02,213.96,20.0]
[1731263785443,0.12549,214.02,213.97,20.0]
[1731263786233,0.12549,214.02,213.97,33.67647455]
[1731263786437,0.12549,214.02,213.98,33.67647455]
[1731263786654,0.12549,214.02,214.0,20.0]
[1731263786850,0.1,214.01,214.0,20.0]
[1731263787039,0.1,214.01,214.0,53.67647455]
[1731263787349,0.1,214.1,214.02,20.0]
[1731263787543,0.1,214.1,214.05,20.0]
[1731263787745,27.99,214.09,214.05,20.0]
[1731263788148,0.12549,214.08,214.02,20.0]
[1731263788446,23.776884,214.09,214.04,20.0]
[1731263788635,33.67647455,214.08,214.04,20.0]
[1731263788834,23.776884,214.07,214.04,20.0]
[1731263789252,23.776884,214.07,214.02,20.0]
[1731263789434,23.776884,214.07,214.02,53.67647455]
[1731263789633,0.12549,214.06,214.02,53.67647455]
[1731263790349,23.776884,214.07,214.03,33.67647455]
[1731263790546,23.776884,214.07,214.02,53.67647455]
[1731263790963,23.776884,214.07,214.02,20.0]
[1731263791248,23.776884,214.07,214.04,20.0]
[1731263791449,23.776884,214.07,214.03,33.67647455]
[1731263791643,0.1,214.09,214.06,20.0]
[1731263792140,0.1,214.09,214.04,20.0]
[1731263792343,61.66647455,214.13,214.06,53.67647455]
[1731263792536,0.12549,214.12,214.05,33.67647455]
[1731263792757,0.12549,214.12,214.06,20.0]
[1731263792940,0.1,214.15,214.08,33.67647455]
[1731263793145,27.99,214.17,214.13,20.0]
[1731263793146,0.1,214.14,214.13,20.0]
[1731263793360,0.1,214.16,214.15,20.0]
[1731263793856,0.1,214.16,214.13,20.0]
[1731263794761,0.1,214.16,214.12,33.67647455]
[1731263794762,24.002374,214.18,214.12,33.67647455]
[1731263794943,24.002374,214.18,214.13,33.67647455]
[1731263795140,0.1,214.18,214.14,20.0]
[1731263795340,0.1,214.18,214.14,53.67647455]
[1731263795833,0.1,214.18,214.15,33.67647455]
[1731263796036,0.1,214.18,214.16,20.0]
[1731263796436,27.99,214.19,214.16,20.0]
[1731263796437,23.876884,214.19,214.16,20.0]
[1731263796634,0.1,214.18,214.15,20.0]
[1731263797150,4.82344122,214.2,214.18,20.0]
[1731263797340,4.82344122,214.2,214.19,53.67647455]
[1731263797756,4.82344122,214.2,214.19,20.0]
[1731263798038,4.82344122,214.2,214.17,53.67647455]
[1731263798246,4.82344122,214.2,214.19,33.67647455]
[1731263798441,4.82344122,214.2,214.19,53.67647455]
[1731263799046,28.60032522,214.2,214.19,53.67647455]
[1731263800064,23.776884,214.19,214.17,20.0]
[1731263800360,21.276884,214.19,214.18,33.67647455]
[1731263800657,21.276884,214.19,214.16,6.6161]
[1731263802662,21.276884,214.19,214.17,20.0]
[1731263804654,0.1,214.18,214.17,20.0]
[1731263804964,0.12549,214.16,214.14,20.0]
[1731263805144,0.12549,214.16,214.1,40.29257455]
[1731263805145,23.776884,214.15,214.1,6.6161]
[1731263805352,0.22549,214.16,214.1,40.29257455]
[1731263805546,0.1,214.15,214.1,6.6161]
[1731263805753,0.22549,214.14,214.1,6.6161]
[1731263805961,0.1,214.13,214.1,33.67647455]
[1731263806641,0.1,214.13,214.11,33.67647455]
[1731263807045,0.1,214.13,214.12,20.0]
[1731263807260,0.1,214.22,214.12,53.67647455]
[1731263807465,0.1,214.21,214.17,20.0]
[1731263807766,0.1,214.22,214.17,20.0]
[1731263807958,0.1,214.22,214.17,53.67647455]
[1731263808265,0.1,214.22,214.16,53.67647455]
[1731263808565,23.876884,214.22,214.16,53.67647455]
[1731263809655,23.876884,214.22,214.19,20.0]
[1731263809852,4.82180725,214.23,214.22,20.0]
[1731263810067,4.82180725,214.23,214.22,53.67647455]
[1731263812165,4.82180725,214.23,214.22,53.77647455]
[1731263812553,27.99,214.34,214.23,20.0]
[1731263812753,27.99,214.34,214.29,20.0]
[1731263813266,0.03,214.38,214.29,20.0]
[1731263813267,61.76647455,214.37,214.3,20.0]
[1731263813467,0.12549,214.34,214.29,20.0]
[1731263813857,27.99,214.35,214.29,53.67647455]
[1731263814255,27.99,214.38,214.32,33.67647455]
[1731263814577,4.9201,214.44,214.35,20.0]
[1731263814578,33.67647455,214.41,214.35,20.0]
[1731263814751,33.67647455,214.42,214.35,53.67647455]
[1731263814947,33.67647455,214.44,214.38,20.0]
[1731263815264,0.03,214.47,214.38,20.0]
[1731263815265,33.67647455,214.45,214.38,20.0]
[1731263815446,61.66647455,214.45,214.38,20.0]
[1731263815859,27.99,214.45,214.38,33.67647455]
[1731263816065,27.99,214.45,214.39,20.0]
[1731263816267,33.67647455,214.46,214.39,20.0]
[1731263816475,0.03,214.47,214.43,20.0]
[1731263816655,28.02,214.47,214.4,33.67647455]
[1731263816967,28.11549,214.42,214.35,33.67647455]
[1731263817173,0.03,214.47,214.33,33.67647455]
[1731263817174,28.11549,214.4,214.33,33.67647455]
[1731263817469,0.12549,214.38,214.32,33.67647455]
[1731263817670,0.12549,214.38,214.28,6.2701]
[1731263817671,23.902374,214.36,214.28,6.2701]
[1731263817859,23.902374,214.34,214.28,6.2701]
[1731263818180,23.902374,214.34,214.23,15.5682]
[1731263818868,23.902374,214.34,214.28,33.67647455]
[1731263819367,27.99,214.31,214.26,33.67647455]
[1731263819566,23.776884,214.3,214.27,20.0]
[1731263819755,0.12549,214.29,214.22,33.67647455]
[1731263819954,51.892374,214.27,214.2,33.67647455]
[1731263820271,23.776884,214.24,214.17,33.67647455]
[1731263820575,23.776884,214.19,214.17,33.67647455]
[1731263820749,23.776884,214.19,214.18,33.67647455]
[1731263820949,23.776884,214.27,214.18,33.67647455]
[1731263821172,23.776884,214.27,214.23,33.67647455]
[1731263821382,23.776884,214.27,214.13,0.2]
[1731263821558,23.776884,214.26,214.22,20.0]
[1731263821870,23.776884,214.21,214.15,33.67647455]
[1731263822078,23.776884,214.21,214.16,33.67647455]
[1731263822372,23.776884,214.21,214.18,33.67647455]
[1731263822557,27.99,214.31,214.2,33.67647455]
[1731263822754,27.99,214.26,214.19,33.67647455]
[1731263822950,6.50590211,214.32,214.09,21.7846]
[1731263822951,0.12549,214.23,214.2,20.0]
[1731263823171,27.99,214.24,214.18,20.0]
[1731263823470,0.12549,214.23,214.17,33.67647455]
[1731263823658,0.12549,214.23,214.18,33.67647455]
[1731263823852,23.902374,214.23,214.18,33.67647455]
[1731263824072,23.776884,214.23,214.18,33.67647455]
[1731263824285,23.776884,214.23,214.22,33.67647455]
[1731263824451,6.50590211,214.32,214.22,33.67647455]
[1731263824452,33.67647455,214.31,214.22,33.67647455]
[1731263824654,33.67647455,214.28,214.21,33.67647455]
[1731263825065,0.12549,214.29,214.22,20.0]
[1731263825267,33.67647455,214.3,214.22,20.0]
[1731263825268,61.66647455,214.3,214.22,20.0]
[1731263825682,0.12549,214.29,214.23,33.67647455]
[1731263825864,0.12549,214.29,214.24,20.0]
[1731263826476,27.99,214.31,214.28,20.0]
[1731263827175,0.03,214.39,214.28,20.0]
[1731263827176,0.1,214.3,214.29,53.67647455]
[1731263827362,0.1,214.3,214.29,20.0]
[1731263827566,27.99,214.35,214.3,20.0]
[1731263827758,0.12549,214.34,214.3,20.0]
[1731263828356,27.99,214.37,214.33,33.67647455]
[1731263828675,27.99,214.37,214.32,20.0]
[1731263828873,0.12549,214.36,214.32,20.0]
[1731263829175,28.11549,214.34,214.27,33.67647455]
[1731263829364,28.11549,214.34,214.28,20.0]
[1731263829867,33.67647455,214.35,214.28,20.0]
[1731263829868,0.12549,214.32,214.28,20.0]
[1731263830174,51.766884,214.33,214.28,20.0]
[1731263830373,0.1,214.38,214.28,20.0]
[1731263830374,23.776884,214.34,214.3,33.67647455]
[1731263830576,0.03,214.39,214.34,20.0]
[1731263830777,0.03,214.39,214.38,20.0]
[1731263831273,33.67647455,214.48,214.38,20.0]
[1731263831472,27.99,214.45,214.38,20.0]
[1731263831681,27.99,214.43,214.38,20.0]
[1731263832177,27.99,214.43,214.39,33.67647455]
[1731263832358,33.67647455,214.49,214.42,20.0]
[1731263832559,27.99,214.48,214.42,20.0]
[1731263832758,0.03,214.53,214.46,33.67647455]
[1731263833062,0.03,214.53,214.47,20.0]
[1731263833260,0.03,214.53,214.49,33.67647455]
[1731263833559,0.03,214.53,214.52,20.0]
[1731263833967,0.03,214.53,214.47,20.0]
[1731263834279,0.03,214.53,214.47,20.1]
[1731263834479,0.03,214.53,214.49,20.0]
[1731263834671,0.03,214.53,214.52,33.67647455]
[1731263834876,0.03,214.53,214.52,53.67647455]
[1731263835386,0.1,214.71,214.53,20.0]
[1731263835587,27.99,214.67,214.62,20.0]
[1731263835878,33.67647455,214.66,214.62,20.0]
[1731263836064,0.12549,214.65,214.58,33.67647455]
[1731263836266,0.12549,214.62,214.56,20.0]
[1731263836469,33.67647455,214.59,214.51,33.67647455]
[1731263836656,33.67647455,214.55,214.48,49.47227455]
[1731263836855,33.67647455,214.54,214.48,15.7958]
[1731263837081,23.902374,214.54,214.48,49.47227455]
[1731263837296,33.67647455,214.53,214.48,15.7958]
[1731263837461,0.12549,214.51,214.48,15.7958]
[1731263837777,33.67647455,214.53,214.48,15.7958]
[1731263838078,0.12549,214.5,214.49,20.0]
[1731263838487,0.12549,214.5,214.46,6.3693]
[1731263838783,23.776884,214.49,214.4,21.2677]
[1731263838960,23.776884,214.46,214.4,21.2677]
[1731263839164,0.12549,214.45,214.4,21.2677]
[1731263839589,0.12549,214.45,214.4,54.94417455]
[1731263839788,23.776884,214.43,214.4,33.67647455]
[1731263839961,23.776884,214.43,214.33,15.1944]
[1731263839962,23.776884,214.47,214.39,0.1]
[1731263840171,33.67647455,214.53,214.46,33.67647455]
[1731263840472,0.12549,214.55,214.35,0.1]
[1731263840981,0.12549,214.55,214.34,20.1]
[1731263841181,0.12549,214.55,214.36,0.2]
[1731263841380,33.67647455,214.48,214.4,33.67647455]
[1731263841563,33.67647455,214.44,214.37,33.67647455]
[1731263841771,23.902374,214.43,214.37,33.67647455]
[1731263841965,0.12549,214.43,214.37,33.67647455]
[1731263842576,0.12549,214.43,214.38,33.67647455]
[1731263842778,23.902374,214.45,214.38,33.67647455]
[1731263843012,0.12549,214.45,214.42,33.67647455]
[1731263843192,23.902374,214.45,214.38,33.67647455]
[1731263843491,0.12549,214.43,214.37,20.0]
[1731263843662,23.902374,214.43,214.36,33.67647455]
[1731263844061,23.902374,214.41,214.34,33.67647455]
[1731263844286,0.12549,214.39,214.33,15.1944]
[1731263844472,23.776884,214.39,214.38,33.67647455]
[1731263844680,33.67647455,214.49,214.38,33.67647455]
[1731263844982,33.67647455,214.49,214.42,33.67647455]
[1731263845566,33.67647455,214.49,214.43,20.0]
[1731263845781,33.67647455,214.53,214.45,20.0]
[1731263846081,0.12549,214.51,214.45,20.0]
[1731263846385,27.9,214.52,214.45,20.0]
[1731263846767,0.12549,214.51,214.47,20.0]
[1731263847168,27.9,214.54,214.47,20.0]
[1731263847388,27.9,214.54,214.49,20.0]
[1731263847585,27.9,214.6,214.53,33.67647455]
[1731263847892,27.9,214.62,214.56,20.0]
[1731263848063,0.12549,214.61,214.56,20.0]
[1731263848263,27.9,214.62,214.56,20.0]
[1731263848683,0.12549,214.61,214.56,20.0]
[1731263848886,27.9,214.62,214.56,20.0]
[1731263849582,61.57647455,214.61,214.54,20.0]
[1731263849978,0.12549,214.6,214.54,20.0]
[1731263850179,23.902374,214.6,214.54,20.0]
[1731263850521,0.1,214.66,214.52,20.0]
[1731263850522,23.902374,214.58,214.52,20.0]
[1731263851487,27.9,214.63,214.57,53.67647455]
[1731263852090,27.9,214.6,214.51,33.67647455]
[1731263852394,27.9,214.62,214.55,33.67647455]
[1731263852771,51.802374,214.61,214.55,33.67647455]
[1731263853080,51.802374,214.61,214.5,33.67647455]
[1731263853081,51.802374,214.61,214.58,33.67647455]
[1731263853269,51.802374,214.61,214.57,33.67647455]
[1731263853581,51.802374,214.61,214.58,53.67647455]
[1731263853789,51.802374,214.61,214.58,20.0]
[1731263853990,51.802374,214.61,214.58,53.67647455]
[1731263854188,27.9,214.64,214.6,53.67647455]
[1731263854384,33.67647455,214.68,214.62,20.0]
[1731263854690,4.81489704,214.68,214.64,33.67647455]
[1731263854888,33.67647455,214.71,214.64,20.0]
[1731263855193,27.9,214.69,214.64,20.0]
[1731263855486,27.9,214.69,214.63,33.67647455]
[1731263855487,61.57647455,214.68,214.63,20.0]
[1731263856187,0.12549,214.67,214.62,20.0]
[1731263856394,0.12549,214.65,214.49,15.8534]
[1731263856593,23.902374,214.63,214.59,33.67647455]
[1731263856994,23.902374,214.63,214.5,33.67647455]
[1731263856995,23.902374,214.63,214.6,33.67647455]
[1731263857871,57.57884855,214.63,214.56,33.67647455]
[1731263858072,57.57884855,214.63,214.57,20.0]
[1731263858073,85.47884855,214.63,214.57,20.0]
[1731263858383,85.47884855,214.63,214.57,53.67647455]
[1731263858384,51.802374,214.63,214.57,53.67647455]
[1731263858996,0.12549,214.57,214.49,15.7534]
[1731263859297,57.57884855,214.53,214.46,33.67647455]
[1731263859501,23.902374,214.53,214.48,33.67647455]
[1731263860181,23.902374,214.53,214.47,33.67647455]
[1731263860387,23.902374,214.53,214.46,33.67647455]
[1731263860572,51.802374,214.53,214.46,33.67647455]
[1731263860873,0.12549,214.53,214.48,33.67647455]
[1731263861077,57.45335855,214.54,214.47,33.67647455]
[1731263861304,0.12549,214.53,214.46,33.67647455]
[1731263861675,0.12549,214.53,214.43,21.9625]
[1731263861676,0.12549,214.53,214.47,33.67647455]
[1731263862078,0.12549,214.53,214.5,33.67647455]
[1731263862281,23.902374,214.51,214.5,20.0]
[1731263862579,18.902374,214.51,214.46,20.0]
[1731263862780,18.902374,214.51,214.46,53.67647455]
[1731263863194,33.67647455,214.52,214.45,33.67647455]